bitfinex/quotes_ETHUSD_20220106
["timestamp","ask_amount","ask_price","bid_price","bid_amount"]
[1641440791471,0.71958,3475.1,3474.9,4.29813684]
[1641440791671,0.3,3475.0,3474.9,4.29813684]
[1641440792275,7.1837675,3474.9,3474.0,0.112]
[1641440792480,0.73233168,3474.5,3473.8,0.00327634]
[1641440792673,4.05490442,3474.4,3474.2,0.00397897]
[1641440792917,4.05490442,3474.4,3474.1,0.04544449]
[1641440792918,4.65490442,3474.4,3474.1,0.04544449]
[1641440793116,8.64687522,3474.3,3473.2,4.4082]
[1641440793321,0.71983,3474.0,3473.0,0.1088]
[1641440793518,0.71983,3474.0,3472.7,1.09114295]
[1641440793519,0.6,3473.9,3473.3,0.00511581]
[1641440793919,0.71983,3473.5,3472.8,0.11755793]
[1641440794121,0.71983,3473.5,3472.8,0.0193895]
[1641440794321,0.6,3473.4,3472.7,0.99114295]
[1641440794520,0.60284211,3473.4,3472.4,0.1232]
[1641440794719,0.60284211,3473.4,3472.4,0.1216]
[1641440794920,0.60284211,3473.4,3472.5,0.0022737]
[1641440795125,0.30284211,3473.4,3472.5,0.0022737]
[1641440795322,0.00284211,3473.4,3472.5,0.0022737]
[1641440795523,0.00284211,3473.4,3472.7,1.29962467]
[1641440795920,0.00284211,3473.4,3472.5,0.1222737]
[1641440796122,1.43979,3473.3,3472.5,0.0022737]
[1641440796320,1.43979,3473.3,3472.4,0.1216]
[1641440796321,1.43979,3473.3,3472.6,0.00170527]
[1641440796566,0.71983,3473.1,3472.6,0.00170527]
[1641440797168,0.71983,3473.1,3472.6,0.11130527]
[1641440797367,0.71983,3473.1,3472.6,0.00170527]
[1641440797669,0.71983,3473.1,3472.7,0.00113685]
[1641440799271,5.02923025,3473.1,3472.7,0.00113685]
[1641440799870,5.02923025,3473.1,3472.6,0.00170527]
[1641440800325,5.02923025,3473.1,3472.7,1.30206303]
[1641440800525,4.30940025,3473.1,3472.7,1.30206303]
[1641440800920,4.30940025,3473.1,3472.8,0.1088]
[1641440801121,4.30940025,3473.1,3472.8,0.1136]
[1641440801321,4.30940025,3473.1,3472.9,0.108]
[1641440801722,4.30940025,3473.1,3472.8,0.1136]
[1641440801921,4.30940025,3473.1,3472.8,0.116]
[1641440802524,0.7197,3473.8,3472.9,0.64014723]
[1641440802725,1.45246611,3474.8,3472.9,0.64014723]
[1641440802726,1.182,3475.5,3473.0,0.01294085]
[1641440802931,0.00284211,3473.7,3473.2,0.64014723]
[1641440803122,0.00284211,3473.7,3473.4,0.64014723]
[1641440803322,3.20129476,3474.9,3473.6,7.84014723]
[1641440803524,6.91109476,3475.2,3474.2,1.14353896]
[1641440803724,0.00909477,3474.8,3474.3,0.64014723]
[1641440803923,0.00909477,3474.8,3474.5,0.64014723]
[1641440804166,0.00852635,3474.7,3474.5,0.64014723]
[1641440804375,0.00852635,3474.7,3474.6,8.18514723]
[1641440804566,0.01284338,3475.8,3474.6,11.41938423]
[1641440804764,0.01284338,3475.8,3474.6,12.10938423]
[1641440804965,0.01421058,3475.7,3474.8,0.64014723]
[1641440805165,0.01421058,3475.7,3475.2,1.37177529]
[1641440805364,0.01364216,3475.6,3475.3,0.64014723]
[1641440805765,3.40947106,3476.5,3475.3,0.64014723]
[1641440805766,0.01307374,3475.5,3475.3,0.64014723]
[1641440805967,1.10390205,3475.5,3475.3,0.64014723]
[1641440806169,6.01250531,3475.4,3475.3,0.64014723]
[1641440806565,6.01132131,3475.4,3475.3,0.64014723]
[1641440806964,6.31132131,3475.4,3475.3,0.64014723]
[1641440807167,6.61132131,3475.4,3475.3,0.64014723]
[1641440807565,10.00168213,3475.4,3474.4,1.35839905]
[1641440807821,7.2,3475.3,3473.4,0.345]
[1641440808022,7.2,3475.3,3473.3,0.00130105]
[1641440808023,1.03224735,3474.9,3473.3,0.00130105]
[1641440808224,0.71974,3474.5,3473.3,0.00130105]
[1641440808424,3.72610361,3474.4,3473.3,0.00130105]
[1641440808626,4.03292469,3474.4,3473.3,0.00130105]
[1641440808825,0.00625265,3474.3,3473.9,1.28906703]
[1641440809225,0.00568423,3474.2,3473.9,1.28906703]
[1641440809626,0.00511581,3474.1,3473.9,1.28906703]
[1641440810027,0.00454738,3474.0,3473.3,1.05334934]
[1641440810427,0.00397896,3473.9,3473.3,1.05334934]
[1641440810731,0.00341054,3473.8,3473.3,1.05334934]
[1641440811127,0.00284211,3473.7,3473.4,1.51353438]
[1641440811563,0.00227369,3473.6,3473.4,1.51353438]
[1641440811969,0.00170527,3473.5,3473.3,0.00130105]
[1641440812369,0.00113684,3473.4,3473.3,0.00130105]
[1641440815511,0.00113684,3473.4,3473.3,1.29889406]
[1641440816110,0.00113684,3473.4,3473.3,0.00130105]
[1641440816515,0.00113684,3473.4,3473.3,5.15130105]
[1641440817315,0.00113684,3473.4,3473.3,6.2829144]
[1641440817515,0.00113684,3473.4,3473.3,6.2329144]
[1641440817715,0.00113684,3473.4,3473.3,7.33261995]
[1641440818523,0.00113684,3473.4,3473.3,8.3329144]
[1641440818524,0.00033684,3473.4,3473.3,8.3329144]
[1641440818715,0.00033684,3473.4,3473.3,7.54630105]
[1641440818918,0.00033684,3473.4,3473.3,7.65510105]
[1641440819160,0.00033684,3473.4,3473.3,8.66070105]
[1641440819361,0.00033684,3473.4,3473.3,9.66390105]
[1641440819575,0.00033684,3473.4,3473.3,9.66710105]
[1641440819861,0.00033684,3473.4,3473.3,9.66630105]
[1641440820063,0.00033684,3473.4,3473.3,9.66710105]
[1641440820261,0.00033684,3473.4,3473.3,8.66550105]
[1641440820463,0.00033684,3473.4,3473.3,8.66310105]
[1641440820663,0.00033684,3473.4,3473.3,7.66230105]
[1641440820863,0.00033684,3473.4,3473.3,7.66150105]
[1641440821072,0.00033684,3473.4,3473.3,7.66070105]
[1641440821266,0.00033684,3473.4,3473.3,7.66150105]
[1641440821665,0.00033684,3473.4,3473.3,7.66230105]
[1641440821868,0.00033684,3473.4,3473.3,7.66150105]
[1641440822066,0.00033684,3473.4,3473.3,8.66070105]
[1641440822268,0.00033684,3473.4,3473.3,8.66150105]
[1641440822468,0.00033684,3473.4,3473.3,8.66230105]
[1641440822823,0.00033684,3473.4,3473.3,8.66150105]
[1641440823013,0.00033684,3473.4,3473.3,8.65910105]
[1641440823213,0.00033684,3473.4,3473.3,8.65990105]
[1641440823419,0.00033684,3473.4,3473.3,8.66070105]
[1641440823820,0.00033684,3473.4,3473.3,8.65990105]
[1641440824022,0.00033684,3473.4,3473.3,7.65990105]
[1641440824221,0.00033684,3473.4,3473.3,7.66070105]
[1641440824821,0.00033684,3473.4,3473.3,7.66187127]
[1641440825422,0.00033684,3473.4,3473.3,7.66107127]
[1641440825621,0.00033684,3473.4,3473.3,7.66027127]
[1641440826322,0.00033684,3473.4,3473.3,7.65947127]
[1641440827164,0.00033684,3473.4,3473.3,7.66027127]
[1641440827568,0.00033684,3473.4,3473.3,8.66267127]
[1641440827767,0.00033684,3473.4,3473.3,8.66347127]
[1641440828165,0.00033684,3473.4,3473.3,8.66427127]
[1641440828368,0.00033684,3473.4,3473.3,8.66507127]
[1641440828773,0.00033684,3473.4,3473.3,8.66427127]
[1641440828968,0.00033684,3473.4,3473.3,8.66347127]
[1641440829170,0.00033684,3473.4,3473.3,8.66267127]
[1641440829569,0.00033684,3473.4,3473.3,8.66347127]
[1641440829971,0.00033684,3473.4,3473.3,8.66427127]
[1641440830419,0.00033684,3473.4,3473.3,6.56107127]
[1641440830818,0.00033684,3473.4,3473.3,6.55787127]
[1641440831019,0.00033684,3473.4,3473.3,6.55867127]
[1641440831220,0.00033684,3473.4,3473.3,6.55947127]
[1641440831423,0.00033684,3473.4,3473.3,6.55787127]
[1641440831620,0.00033684,3473.4,3473.3,6.55707127]
[1641440831821,0.00033684,3473.4,3473.3,6.55787127]
[1641440832022,0.00033684,3473.4,3473.3,0.45577022]
[1641440832422,0.00033684,3473.4,3473.3,0.45497022]
[1641440833026,0.00033684,3473.4,3473.3,0.45417022]
[1641440833425,0.00033684,3473.4,3473.3,6.20577022]
[1641440833624,0.00033684,3473.4,3473.3,6.20497022]
[1641440833824,0.00033684,3473.4,3473.3,6.20417022]
[1641440834870,0.00033684,3473.4,3473.3,6.20497022]
[1641440835270,0.00033684,3473.4,3473.3,6.20577022]
[1641440835672,0.00033684,3473.4,3473.3,6.20737022]
[1641440835871,0.00033684,3473.4,3473.3,0.45657022]
[1641440836072,0.00033684,3473.4,3473.3,0.45337022]
[1641440836275,0.7196264,3474.3,3473.8,1.39726184]
[1641440836679,0.71966,3473.8,3473.4,2.8]
[1641440836872,0.71966,3473.8,3473.5,1.03463035]
[1641440837074,0.00170527,3473.7,3473.5,1.03463035]
[1641440837374,0.00113685,3473.6,3473.5,1.03463035]
[1641440837931,0.00113685,3473.6,3473.5,2.5491605]
[1641440838131,0.00113685,3473.6,3473.5,3.1591605]
[1641440838533,0.00113685,3473.6,3473.5,0.61]
[1641440839038,10.90746818,3475.6,3473.6,7.2]
[1641440839342,9.90746818,3475.6,3474.5,0.64]
[1641440839534,4.68163778,3475.6,3474.5,0.64]
[1641440839933,1.22214113,3475.5,3474.9,1.22192164]
[1641440840136,1.43874,3475.5,3474.9,1.22192164]
[1641440840333,0.01023162,3475.4,3474.9,1.22192164]
[1641440840735,0.0096632,3475.3,3474.5,0.64]
[1641440841135,0.00909478,3475.2,3474.5,0.64]
[1641440841568,0.00852635,3475.1,3474.5,0.64]
[1641440841775,0.00852635,3475.1,3474.9,2.387253]
[1641440841978,0.00795793,3475.0,3474.9,2.387253]
[1641440842173,0.00795793,3475.0,3474.9,1.01148047]
[1641440842374,0.30795793,3475.0,3474.9,1.01148047]
[1641440842774,0.00795793,3475.0,3474.9,1.01148047]
[1641440843174,0.00795793,3475.0,3474.9,8.01852732]
[1641440845931,0.00795793,3475.0,3474.9,2.16852732]
[1641440846132,0.00795793,3475.0,3474.9,1.15704685]
[1641440847141,0.00795793,3475.0,3474.9,5.35704685]
[1641440847535,0.00795793,3475.0,3474.9,1.15704685]
[1641440847735,0.00795793,3475.0,3474.5,1.06505646]
[1641440848137,0.00738951,3474.9,3474.5,0.64]
[1641440848535,0.00682108,3474.8,3474.5,0.64]
[1641440848941,0.00625266,3474.7,3474.5,0.0001]
[1641440849173,7.21223779,3474.6,3473.3,3.8996]
[1641440849374,7.51792202,3474.6,3473.3,3.8996]
[1641440849570,17.75511581,3474.5,3473.4,0.00113685]
[1641440849971,0.7197274,3474.0,3473.4,0.00113685]
[1641440850171,0.71979,3473.8,3473.4,0.00113685]
[1641440850376,0.6,3473.7,3473.4,0.00113685]
[1641440850772,0.3,3473.7,3473.4,0.00113685]
[1641440850972,0.3,3473.6,3473.4,0.00113685]
[1641440851474,1.01978,3473.6,3473.4,0.00113685]
[1641440852912,1.7395602,3473.6,3473.4,0.00113685]
[1641440853112,0.71982,3473.4,3472.9,0.00397896]
[1641440853518,0.3,3473.3,3472.9,0.00397896]
[1641440853715,0.3,3473.3,3473.1,1.14682203]
[1641440853916,1.0197852,3473.3,3473.1,1.14682203]
[1641440854117,0.3,3473.4,3473.2,0.00227369]
[1641440854319,1.01976,3473.4,3473.2,0.00227369]
[1641440855322,0.3,3473.3,3473.2,0.00227369]
[1641440855919,0.3,3473.3,3473.0,0.00341054]
[1641440856120,1.01974,3473.3,3473.0,0.00341054]
[1641440856585,4.48985952,3473.2,3473.0,0.00341054]
[1641440856768,0.3,3473.2,3472.7,0.00511581]
[1641440856968,0.3,3473.2,3473.1,0.00404001]
[1641440857169,0.6,3473.3,3473.1,0.00119789]
[1641440857369,6.62398044,3473.2,3473.1,0.00404001]
[1641440857575,3.57398044,3473.2,3473.1,0.00119789]
[1641440857771,0.3,3473.2,3473.1,0.00119789]
[1641440857973,1.3199406,3473.3,3473.1,0.00119789]
[1641440858173,3.4798306,3473.3,3473.1,0.00119789]
[1641440858374,3.4798306,3473.3,3472.0,0.54435766]
[1641440858375,3.1929986,3473.2,3472.0,0.54435766]
[1641440858576,1.440103,3472.5,3472.0,0.43555766]
[1641440858775,1.440103,3472.5,3472.1,0.00625266]
[1641440859074,2.040103,3472.5,3472.1,0.00625266]
[1641440859475,2.040103,3472.5,3472.2,1.34805085]
[1641440859674,0.72001,3472.4,3472.2,1.34805085]
[1641440859876,1.02001,3472.4,3472.3,0.00511581]
[1641440860180,0.6,3472.4,3472.3,0.00511581]
[1641440860422,9.10587632,3472.4,3472.3,0.00511581]
[1641440860618,26.85587632,3472.4,3472.3,0.00511581]
[1641440860819,0.72032,3471.8,3471.1,2.3513853]
[1641440861019,1.424033,3471.4,3471.1,2.3513853]
[1641440861220,1.424033,3471.4,3471.1,2.2513853]
[1641440861525,0.3,3471.3,3471.1,2.2513853]
[1641440861923,0.3,3471.4,3471.1,2.2513853]
[1641440862123,1.32035,3471.5,3471.1,2.2513853]
[1641440862525,1.32035,3471.5,3471.1,3.74749808]
[1641440862732,0.72038,3471.3,3471.1,3.74749808]
[1641440862926,1.4407465,3471.3,3471.1,3.74749808]
[1641440863127,0.6,3471.2,3471.1,3.74749808]
[1641440863530,0.6,3471.2,3471.1,1.50293387]
[1641440864967,5.6,3471.2,3471.1,1.50293387]
[1641440865768,5.6,3471.2,3471.1,0.00682109]
[1641440865970,15.70241751,3471.2,3471.1,0.00682109]
[1641440866271,0.75974296,3470.9,3470.3,0.01136847]
[1641440866469,2.1614259,3470.7,3470.3,0.01136847]
[1641440866670,1.13491859,3470.4,3469.7,1.62024024]
[1641440866871,3.47872192,3470.3,3469.7,1.62024024]
[1641440867073,0.6,3470.3,3470.0,0.00170527]
[1641440867272,0.6,3470.3,3469.1,5.28369561]
[1641440867472,0.3,3469.6,3469.1,5.28369561]
[1641440867674,0.3,3469.6,3469.2,0.00454739]
[1641440867917,1.44112,3469.9,3469.2,0.00454739]
[1641440867918,0.3,3469.7,3469.2,0.00454739]
[1641440868420,0.3,3469.7,3469.3,1.44297489]
[1641440868822,0.00113684,3470.2,3469.4,0.00341055]
[1641440869220,0.00113684,3470.2,3469.4,0.16042088]
[1641440869419,0.00113684,3470.2,3469.5,0.04741033]
[1641440869620,0.00113684,3470.2,3469.5,3.97655245]
[1641440869819,0.00113684,3470.2,3469.6,0.0022737]
[1641440870025,0.00113684,3470.2,3470.1,3.92398584]
[1641440870622,0.00113684,3470.2,3470.1,2.57278678]
[1641440871026,0.00113684,3470.2,3470.1,9.64621127]
[1641440871027,0.00033684,3470.2,3470.1,9.64621127]
[1641440871227,0.00033684,3470.2,3470.1,8.64621127]
[1641440871423,0.00033684,3470.2,3470.1,7.24741033]
[1641440871684,0.00033684,3470.2,3470.1,0.04741033]
[1641440871881,0.00033684,3470.2,3470.1,3.94741033]
[1641440872283,0.00033684,3470.2,3470.1,5.06091969]
[1641440872480,0.00033684,3470.2,3470.1,3.9]
[1641440872882,0.00033684,3470.2,3470.1,6.65]
[1641440873886,0.00033684,3470.2,3470.1,6.69741019]
[1641440874486,0.00033684,3470.2,3470.1,0.04741019]
[1641440874886,0.00033684,3470.2,3470.1,4.84741019]
[1641440876919,0.00033684,3470.2,3470.1,1.16261019]
[1641440877120,0.00033684,3470.2,3470.1,0.04741019]
[1641440877722,0.00033684,3470.2,3469.9,0.1208]
[1641440877921,0.00033684,3470.2,3469.9,0.12]
[1641440878124,0.00033684,3470.2,3470.1,3.65147962]
[1641440879675,0.00033684,3470.2,3470.1,0.00147962]
[1641440880472,0.00033684,3470.2,3469.9,5.924e-05]
[1641440880680,0.30033684,3470.2,3469.9,5.924e-05]
[1641440881476,0.30033684,3470.2,3469.9,1.29846514]
[1641440882817,0.30033684,3470.2,3469.9,5.924e-05]
[1641440883018,0.30033684,3470.2,3469.0,1.1445]
[1641440883222,0.72057,3469.6,3469.0,1.1445]
[1641440883422,2.8822518,3469.8,3469.1,0.00511582]
[1641440883622,0.3,3469.6,3469.1,0.00511582]
[1641440883822,0.3,3469.6,3469.0,0.00568424]
[1641440883823,1.10467724,3469.4,3469.0,0.00568424]
[1641440884022,0.3,3469.6,3469.0,0.00568424]
[1641440884223,0.3,3469.4,3468.9,0.00625266]
[1641440884622,1.44112,3469.4,3468.9,0.00625266]
[1641440884823,0.6,3469.3,3468.9,0.00625266]
[1641440885525,7.15,3468.9,3468.2,1.1104]
[1641440885730,2.56271786,3468.3,3468.2,1.0]
[1641440886124,7.2,3468.1,3467.6,2.22153046]
[1641440886325,0.03746223,3468.2,3467.6,2.22153046]
[1641440886566,0.72101,3468.0,3467.1,1.13352771]
[1641440886766,0.72099,3467.9,3467.7,1.31162618]
[1641440886966,1.02212684,3467.9,3467.2,0.00284212]
[1641440887164,0.7210206,3467.6,3467.2,0.00284212]
[1641440887363,0.7210206,3467.6,3466.9,0.01069036]
[1641440887364,0.03465577,3467.6,3467.1,0.00341055]
[1641440887569,7.2,3467.3,3466.9,0.01069036]
[1641440887767,8.26631,3467.2,3466.9,0.01069036]
[1641440887970,8.26631,3467.2,3466.4,1.31533085]
[1641440887971,1.1697095,3466.9,3466.4,1.31533085]
[1641440888170,0.345,3466.8,3466.2,6.17]
[1641440888377,0.0312965,3466.6,3466.5,0.00341054]
[1641440888574,7.85755091,3466.6,3465.1,6.1e-05]
[1641440888773,10.12124862,3466.5,3465.1,6.1e-05]
[1641440888972,0.72149,3465.9,3465.1,6.1e-05]
[1641440889175,0.345,3465.8,3465.4,6.12]
[1641440889374,0.7214051,3465.6,3465.3,1.36817677]
[1641440889674,1.3605146,3465.6,3465.4,0.00511581]
[1641440889872,2.0429651,3465.6,3465.4,0.00511581]
[1641440890527,2.07770432,3465.6,3465.4,0.00511581]
[1641440890726,0.95242875,3465.3,3465.1,6.1e-05]
[1641440890934,9.27770432,3465.6,3463.2,6.61169]
[1641440890935,0.29495941,3464.1,3463.5,0.1152]
[1641440891132,10.62589379,3464.1,3463.2,2.69956211]
[1641440891332,10.62589379,3464.1,3463.3,0.9]
[1641440891333,0.72176,3463.8,3463.3,0.9]
[1641440891525,0.72176,3463.8,3463.3,9.5614]
[1641440891728,0.72176,3463.8,3463.3,5.79285627]
[1641440891929,6.19669382,3463.7,3463.4,0.01136847]
[1641440892127,6.19669382,3463.7,3463.0,0.44281304]
[1641440892528,6.19669382,3463.7,3460.5,6.77440544]
[1641440892529,32.00114791,3463.5,3462.8,5.76856103]
[1641440892727,25.47673551,3463.5,3461.4,11.35170089]
[1641440892932,0.01261896,3463.1,3461.4,11.35170089]
[1641440893134,0.7221029,3462.5,3462.0,1.40456174]
[1641440893329,1.0671029,3462.5,3462.0,1.40456174]
[1641440893535,1.0601029,3462.5,3462.0,1.35456174]
[1641440893730,0.7151029,3462.5,3462.1,1.21099187]
[1641440893932,0.03017158,3463.6,3462.1,1.21099187]
[1641440893933,2.19970519,3463.8,3462.2,3.18093438]
[1641440894185,2.19970519,3463.8,3462.2,0.1104]
[1641440894186,2.16623,3463.8,3462.2,0.1104]
[1641440894387,1.4438,3463.1,3462.3,0.00625266]
[1641440894587,1.4438,3463.1,3462.1,1.20360236]
[1641440894789,0.00397896,3463.0,3462.2,0.1152]
[1641440894992,0.00397896,3463.0,3462.2,0.1216]
[1641440895187,0.72183,3462.7,3462.2,0.12]
[1641440895389,0.72183,3462.7,3462.3,8.6644]
[1641440895590,1.4438,3463.1,3462.3,9.7437913]
[1641440895788,1.4438,3463.1,3462.4,0.11633685]
[1641440895989,0.00113685,3462.8,3462.4,0.10993685]
[1641440896196,0.00113685,3462.8,3462.4,0.11233685]
[1641440896394,0.00113685,3462.8,3462.5,0.1112]
[1641440896596,0.00113685,3462.8,3462.5,0.1088]
[1641440896791,0.00113685,3462.8,3462.4,0.12353685]
[1641440896992,0.00113685,3462.8,3462.6,1.03235661]
[1641440897595,1.44344,3463.6,3462.7,7.2]
[1641440897822,1.44344,3463.6,3462.6,1.03235661]
[1641440898023,0.00113684,3463.0,3462.6,1.03235661]
[1641440899025,3.684e-05,3463.0,3462.7,0.108]
[1641440899235,0.29495941,3464.1,3463.0,7.2]
[1641440899530,2.88599,3466.2,3463.8,7.2]
[1641440899827,0.00625266,3464.1,3463.9,0.345]
[1641440900028,0.00625266,3464.1,3464.0,17.23577453]
[1641440900029,5.266e-05,3464.1,3464.0,17.23577453]
[1641440900229,0.72122,3466.1,3464.0,105.632306]
[1641440900432,0.03574107,3466.2,3464.8,1.30514934]
[1641440900628,0.01210992,3465.5,3464.1,0.108]
[1641440900829,0.01210992,3465.5,3464.2,0.345]
[1641440901030,0.7214649,3464.9,3464.2,0.345]
[1641440901332,0.00403163,3464.8,3464.3,1.36376452]
[1641440901803,0.0034632,3464.7,3464.4,1.01915677]
[1641440902209,0.0034632,3464.7,3464.0,8.6605]
[1641440902210,5.851,3464.3,3464.0,4.58e-05]
[1641440902404,7.16215765,3464.1,3464.0,4.58e-05]
[1641440902805,0.31215765,3464.1,3463.9,0.00108419]
[1641440903007,0.01215765,3464.1,3463.9,0.00108419]
[1641440903208,0.01215765,3464.1,3463.9,1.20697434]
[1641440903911,1.03389725,3464.1,3463.9,1.20697434]
[1641440904107,0.3,3464.0,3463.9,1.20697434]
[1641440904516,0.72174,3464.4,3463.9,1.20805853]
[1641440904713,0.00289478,3464.6,3463.9,1.20805853]
[1641440904912,0.00118951,3464.3,3464.1,1.27787761]
[1641440905111,0.72154,3464.8,3464.1,1.27787761]
[1641440905112,0.00232635,3464.5,3464.1,1.27787761]
[1641440905336,0.345,3464.6,3463.9,1.20805853]
[1641440905536,0.7218,3464.3,3463.9,1.20805853]
[1641440905740,1.4436,3464.1,3463.9,1.20805853]
[1641440905937,1.7886,3464.1,3463.9,0.00108419]
[1641440906139,0.7219087,3463.5,3462.7,0.00198627]
[1641440906338,0.345,3463.4,3462.8,0.00625265]
[1641440906543,0.345,3463.4,3462.2,1.0030811]
[1641440906544,0.01230002,3463.1,3462.6,0.00072519]
[1641440906938,0.00113684,3463.0,3462.7,1.25969342]
[1641440907139,7.15,3462.9,3462.6,1.23017155]
[1641440907343,0.72316684,3463.0,3462.6,1.23017155]
[1641440907538,0.6,3462.9,3462.6,1.23017155]
[1641440907737,0.6,3462.9,3461.4,0.01]
[1641440907938,0.6,3462.9,3461.5,1.00361589]
[1641440907939,0.3,3462.9,3461.5,1.00361589]
[1641440908141,0.3,3462.8,3461.5,1.0110054]
[1641440908339,0.3,3462.8,3461.5,0.9110054]
[1641440908539,1.29216163,3462.0,3461.5,1.18485219]
[1641440908842,1.29216163,3462.0,3461.0,29.96738951]
[1641440908843,0.3,3461.8,3461.0,29.96738951]
[1641440909078,0.345,3461.7,3461.0,29.96738951]
[1641440909275,0.01267535,3461.3,3461.0,24.1900742]
[1641440909472,0.01267535,3461.3,3461.0,18.3599042]
[1641440909473,1.0675059,3461.2,3461.0,18.3599042]
[1641440909673,1.0675059,3461.2,3460.2,0.7452]
[1641440909674,1.17142897,3460.4,3460.2,0.7452]
[1641440909975,0.35791211,3460.3,3460.2,0.7452]
[1641440910179,0.01291211,3460.3,3460.2,0.7452]
[1641440910475,0.01291211,3460.3,3460.2,7.90031581]
[1641440910674,1.46088626,3461.0,3460.2,9.02508661]
[1641440910874,1.46088626,3461.0,3460.2,10.12387681]
[1641440911073,1.46088626,3461.0,3460.3,0.11894739]
[1641440911276,1.46088626,3461.0,3460.3,0.11814739]
[1641440911476,1.46088626,3461.0,3460.4,0.00397897]
[1641440911680,1.46088626,3461.0,3460.5,1.0]
[1641440911876,1.46088626,3461.0,3460.4,0.00397897]
[1641440912376,1.46088626,3461.0,3460.4,0.11837897]
[1641440912577,1.46088626,3461.0,3460.4,0.00397897]
[1641440912817,1.46088626,3461.0,3460.5,0.00341054]
[1641440913022,1.76088626,3461.0,3460.5,0.345]
[1641440913218,1.76088626,3461.0,3460.6,72.234932]
[1641440913219,1.46088626,3461.0,3460.6,72.234932]
[1641440913422,0.00284211,3461.6,3460.7,0.495]
[1641440913622,4.211e-05,3461.6,3460.7,65.3324737]
[1641440913821,0.00227369,3461.5,3461.0,0.15]
[1641440914021,0.00227369,3461.5,3461.4,8.3]
[1641440914226,0.00856847,3463.1,3461.4,16.312]
[1641440914421,0.00856847,3463.1,3461.6,0.15]
[1641440914622,0.7219974,3463.2,3461.6,0.15]
[1641440914623,0.00800004,3463.0,3461.6,0.15]
[1641440915023,0.00800004,3463.0,3461.5,1.2957442]
[1641440915024,0.00743162,3462.9,3462.8,0.15]
[1641440915423,0.00856847,3462.9,3461.6,0.2644]
[1641440915626,0.00856847,3462.9,3461.6,0.2596]
[1641440915822,0.7219974,3463.2,3461.6,0.2596]
[1641440915823,0.0068632,3462.8,3461.6,0.2596]
[1641440916226,0.7219974,3463.2,3461.6,0.2596]
[1641440916227,3.16415034,3463.1,3462.7,0.15]
[1641440916436,7.16276837,3462.8,3462.7,0.15]
[1641440917076,0.31276837,3462.8,3462.7,0.15]
[1641440917377,0.00856847,3463.1,3462.7,0.15]
[1641440917676,5.60696028,3463.8,3462.9,0.15]
[1641440917875,2.44280994,3463.8,3462.9,0.15]
[1641440918080,0.01027374,3463.4,3462.9,0.15]
[1641440918275,0.01027374,3463.4,3463.1,0.15]
[1641440918576,0.00970531,3463.3,3463.1,0.15]
[1641440918776,5.31e-06,3463.3,3463.2,7.4136]
[1641440918977,0.01223753,3465.0,3463.2,2.7586]
[1641440919380,0.00739482,3464.6,3463.2,2.901]
[1641440919577,0.00739482,3464.6,3463.4,1.0]
[1641440919776,0.01223753,3465.0,3463.5,0.15]
[1641440919777,0.01252383,3464.2,3463.5,0.15]
[1641440919978,0.01252383,3464.2,3464.0,0.15]
[1641440920178,0.0045527,3464.1,3464.0,0.15]
[1641440920421,0.0045527,3464.1,3463.1,0.15]
[1641440920619,0.0045527,3464.1,3464.0,1.61459179]
[1641440920822,0.01252383,3464.2,3464.0,1.61459179]
[1641440921828,0.73429913,3464.2,3464.0,1.61459179]
[1641440922025,0.6,3464.1,3464.0,1.61459179]
[1641440923234,11.09007236,3464.1,3463.6,0.00137823]
[1641440923628,0.7219623,3463.8,3463.6,0.00137823]
[1641440923828,1.4438884,3463.7,3463.6,0.00137823]
[1641440924068,8.38368453,3463.7,3463.6,0.00137823]
[1641440924271,1.74616741,3463.7,3463.6,0.00137823]
[1641440924868,1.78037248,3463.7,3463.6,0.00137823]
[1641440925069,1.74616741,3463.7,3463.6,0.00137823]
[1641440925676,0.30227901,3463.7,3463.6,0.00137823]
[1641440926079,0.00227901,3463.7,3463.6,0.00137823]
[1641440926276,7.901e-05,3463.7,3463.6,7.15137823]
[1641440926678,7.901e-05,3463.7,3463.6,7.26977823]
[1641440926874,7.901e-05,3463.7,3463.6,7.61397823]
[1641440927074,7.901e-05,3463.7,3463.6,7.61957823]
[1641440927278,7.901e-05,3463.7,3463.6,7.61717823]
[1641440927477,7.901e-05,3463.7,3463.6,7.61797823]
[1641440927677,0.7214498,3465.6,3463.6,7.61557823]
[1641440927919,0.7214498,3465.6,3463.6,88.38586823]
[1641440928119,0.00909477,3465.3,3464.0,1.0]
[1641440928319,0.00909477,3465.3,3464.0,1.345]
[1641440928523,0.345,3466.9,3464.0,1.345]
[1641440928524,0.00852635,3465.2,3464.1,0.1352]
[1641440928724,0.00852635,3465.2,3464.3,1.0]
[1641440928923,0.00795793,3465.1,3464.5,1.72121]
[1641440929122,0.00795793,3465.1,3465.0,8.29026861]
[1641440929323,3.18127044,3466.5,3465.0,8.29026861]
[1641440929524,3.18127044,3466.6,3465.0,8.41346861]
[1641440929727,0.01534743,3466.4,3465.1,0.1128]
[1641440929930,0.01534743,3466.4,3465.1,1.51521289]
[1641440930124,0.01477901,3466.3,3465.1,1.50881289]
[1641440930323,0.01477901,3466.3,3465.2,0.108]
[1641440930526,0.01421058,3466.2,3466.1,1.30652828]
[1641440930732,0.01421058,3466.2,3465.2,0.108]
[1641440930926,0.01421058,3466.2,3466.0,1.13395581]
[1641440931130,7.16364216,3466.1,3465.3,0.00112834]
[1641440931327,7.17600665,3466.1,3465.3,0.00112834]
[1641440931569,0.01307374,3466.0,3465.3,0.00112834]
[1641440931771,0.73448374,3466.0,3465.3,0.00112834]
[1641440931971,1.4429302,3465.8,3465.3,0.00112834]
[1641440932176,1.7429302,3465.8,3465.3,0.00112834]
[1641440932378,0.7214558,3465.6,3465.4,1.46039216]
[1641440932581,1.2714558,3465.6,3465.4,1.46039216]
[1641440932777,0.01023162,3465.5,3465.4,1.46039216]
[1641440935621,2.1639783,3466.4,3465.5,6.44828645]
[1641440935822,0.7212985,3466.2,3465.5,6.44828645]
[1641440936024,0.00113685,3465.7,3465.5,1.39828645]
[1641440939272,0.00113685,3465.7,3465.4,1.41039216]
[1641440940481,1.02252695,3465.7,3465.4,1.41039216]
[1641440940678,1.32252695,3465.7,3465.4,1.41039216]
[1641440941676,1.32252695,3465.7,3465.5,0.00116288]
[1641440941881,0.00113685,3465.7,3465.5,0.00116288]
[1641440942276,0.00113685,3465.7,3465.5,0.64536288]
[1641440943131,0.00113685,3465.7,3465.6,7.6038]
[1641440943433,3.685e-05,3465.7,3465.6,79.852332]
[1641440943633,3.685e-05,3465.7,3465.6,79.865132]
[1641440943834,0.01277933,3467.7,3465.7,7.15]
[1641440944033,0.01277933,3467.7,3465.8,0.345]